[Event "Titled Tuesday Blitz August 3 2021"]
[White "Zhuravlev, Alexey"]
[Black "Vasquez Schroeder, Rodrigo"]
[WhiteFideId "4164199"]
[BlackFideId "3400042"]
[WhiteElo "2461"]
[BlackElo "2572"]
[Result "0-1"]
[Round "05"]
[TimeControl "180+1"]
[Date "2021.08.03"]
[WhiteClock "0:00:01"]
[BlackClock "0:00:04"]

1. e4 {[%clk 0:03:00]}  e5 {[%clk 0:02:59]} 2. Nf3 {[%clk 0:03:00]}  Nc6 {[%clk 0:02:59]} 3. Bc4 {[%clk 0:03:01]}  Bc5 {[%clk 0:02:59]} 4. c3 {[%clk 0:03:01]}  Nf6 {[%clk 0:02:59]} 5. d4 {[%clk 0:03:02]}  exd4 {[%clk 0:02:58]} 6. cxd4 {[%clk 0:03:02]}  Bb4+ {[%clk 0:02:58]} 7. Nc3 {[%clk 0:03:03]}  Nxe4 {[%clk 0:02:57]} 8. O-O {[%clk 0:03:03]}  Bxc3 {[%clk 0:02:57]} 9. d5 {[%clk 0:03:04]}  Bf6 {[%clk 0:02:50]} 10. Re1 {[%clk 0:03:03]}  Ne7 {[%clk 0:02:50]} 11. Rxe4 {[%clk 0:03:02]}  d6 {[%clk 0:02:50]} 12. Bg5 {[%clk 0:03:03]}  Bxg5 {[%clk 0:02:45]} 13. Nxg5 {[%clk 0:03:04]}  h6 {[%clk 0:02:44]} 14. Qa4+ {[%clk 0:03:00]}  Bd7 {[%clk 0:02:22]} 15. Qb3 {[%clk 0:02:59]}  O-O {[%clk 0:02:07]} 16. Rae1 {[%clk 0:02:53]}  Re8 {[%clk 0:02:00]} 17. Qxb7 {[%clk 0:02:37]}  Rb8 {[%clk 0:01:45]} 18. Qxa7 {[%clk 0:02:37]}  Rxb2 {[%clk 0:01:44]} 19. Qd4 {[%clk 0:02:36]}  Rb4 {[%clk 0:01:38]} 20. Nf3 {[%clk 0:02:15]}  Bb5 {[%clk 0:01:30]} 21. Qc3 {[%clk 0:02:05]}  Rxc4 {[%clk 0:01:27]} 22. Rxc4 {[%clk 0:02:04]}  Nxd5 {[%clk 0:01:20]} 23. Rxe8+ {[%clk 0:01:42]}  Qxe8 {[%clk 0:01:16]} 24. Qd4 {[%clk 0:01:42]}  Bxc4 {[%clk 0:01:07]} 25. Qxc4 {[%clk 0:01:43]}  Qa8 {[%clk 0:01:07]} 26. h4 {[%clk 0:01:33]}  c5 {[%clk 0:01:03]} 27. a4 {[%clk 0:01:32]}  Nb6 {[%clk 0:00:59]} 28. Qd3 {[%clk 0:01:27]}  d5 {[%clk 0:00:53]} 29. Ne5 {[%clk 0:01:20]}  Nxa4 {[%clk 0:00:45]} 30. Qb5 {[%clk 0:01:17]}  Nc3 {[%clk 0:00:29]} 31. Qxc5 {[%clk 0:01:15]}  Ne2+ {[%clk 0:00:23]} 32. Kh2 {[%clk 0:01:12]}  Qe8 {[%clk 0:00:19]} 33. Qxd5 {[%clk 0:01:06]}  Nf4 {[%clk 0:00:17]} 34. Qd4 {[%clk 0:00:54]}  Ne6 {[%clk 0:00:17]} 35. Qd6 {[%clk 0:00:53]}  f6 {[%clk 0:00:14]} 36. Nf3 {[%clk 0:00:47]}  h5 {[%clk 0:00:14]} 37. Qd5 {[%clk 0:00:45]}  Qf7 {[%clk 0:00:14]} 38. g3 {[%clk 0:00:37]}  Nf8 {[%clk 0:00:11]} 39. Qf5 {[%clk 0:00:35]}  Ne6 {[%clk 0:00:11]} 40. Ng1 {[%clk 0:00:26]}  Nf8 {[%clk 0:00:10]} 41. Ne2 {[%clk 0:00:24]}  g6 {[%clk 0:00:10]} 42. Qc8 {[%clk 0:00:23]}  Kg7 {[%clk 0:00:11]} 43. Nf4 {[%clk 0:00:22]}  g5 {[%clk 0:00:10]} 44. hxg5 {[%clk 0:00:18]}  fxg5 {[%clk 0:00:11]} 45. Qc3+ {[%clk 0:00:18]}  Kh7 {[%clk 0:00:10]} 46. Nh3 {[%clk 0:00:15]}  Kg6 {[%clk 0:00:07]} 47. Qd3+ {[%clk 0:00:12]}  Qf5 {[%clk 0:00:07]} 48. Qd6+ {[%clk 0:00:12]}  Ne6 {[%clk 0:00:08]} 49. Kg2 {[%clk 0:00:12]}  Kf7 {[%clk 0:00:07]} 50. Qd7+ {[%clk 0:00:12]}  Kf6 {[%clk 0:00:07]} 51. Qd6 {[%clk 0:00:11]}  g4 {[%clk 0:00:08]} 52. Nf4 {[%clk 0:00:11]}  Kf7 {[%clk 0:00:07]} 53. Qd7+ {[%clk 0:00:10]}  Kf6 {[%clk 0:00:07]} 54. Nd5+ {[%clk 0:00:10]}  Ke5 {[%clk 0:00:06]} 55. Ne3 {[%clk 0:00:05]}  Qe4+ {[%clk 0:00:06]} 56. Kg1 {[%clk 0:00:05]}  Nd4 {[%clk 0:00:06]} 57. Qe7+ {[%clk 0:00:04]}  Ne6 {[%clk 0:00:04]} 58. Qa7 {[%clk 0:00:02]}  Qb1+ {[%clk 0:00:03]} 59. Kg2 {[%clk 0:00:02]}  Qe4+ {[%clk 0:00:03]} 60. Kg1 {[%clk 0:00:02]}  Kf6 {[%clk 0:00:04]} 61. Qa5 {[%clk 0:00:01]}  Nd4 {[%clk 0:00:04]} 62. Qb6+ {[%clk 0:00:01]}  Kf7 {[%clk 0:00:03]} 63. Qc7+ {[%clk 0:00:01]}  Ke6 {[%clk 0:00:04]} 0-1


[Site "https://www.chess.com"]

[Event "Titled Tuesday Blitz August 3 2021"]
[White "Zia, Tahsin Tajwar"]
[Black "Pinheiro, Iung Alicio de O."]
[WhiteFideId "10211888"]
[BlackFideId "2104350"]
[WhiteElo "1800"]
[BlackElo "2531"]
[Result "0-1"]
[Round "05"]
[TimeControl "180+1"]
[Date "2021.08.03"]
[WhiteClock "0:00:02"]
[BlackClock "0:01:07"]

1. d4 {[%clk 0:03:00]}  Nf6 {[%clk 0:02:51]} 2. c4 {[%clk 0:03:01]}  g6 {[%clk 0:02:51]} 3. g3 {[%clk 0:02:40]}  Bg7 {[%clk 0:02:49]} 4. Bg2 {[%clk 0:02:40]}  O-O {[%clk 0:02:48]} 5. Nc3 {[%clk 0:02:41]}  d6 {[%clk 0:02:49]} 6. Nf3 {[%clk 0:02:24]}  Bf5 {[%clk 0:02:44]} 7. O-O {[%clk 0:02:19]}  Ne4 {[%clk 0:02:43]} 8. Nh4 {[%clk 0:02:05]}  Nxc3 {[%clk 0:02:41]} 9. bxc3 {[%clk 0:02:00]}  Bc8 {[%clk 0:02:42]} 10. e4 {[%clk 0:01:56]}  c5 {[%clk 0:02:37]} 11. Be3 {[%clk 0:01:51]}  Qa5 {[%clk 0:02:34]} 12. Qd3 {[%clk 0:01:42]}  Nc6 {[%clk 0:02:27]} 13. Rfd1 {[%clk 0:01:38]}  Bg4 {[%clk 0:02:14]} 14. f3 {[%clk 0:01:21]}  Be6 {[%clk 0:02:06]} 15. f4 {[%clk 0:01:12]}  Bg4 {[%clk 0:02:03]} 16. Bf3 {[%clk 0:01:07]}  Bxf3 {[%clk 0:01:59]} 17. Nxf3 {[%clk 0:01:00]}  Qa3 {[%clk 0:01:47]} 18. Bc1 {[%clk 0:00:42]}  Qa4 {[%clk 0:01:44]} 19. Be3 {[%clk 0:00:38]}  b6 {[%clk 0:01:42]} 20. Kg2 {[%clk 0:00:31]}  Rac8 {[%clk 0:01:40]} 21. e5 {[%clk 0:00:22]}  cxd4 {[%clk 0:01:27]} 22. cxd4 {[%clk 0:00:20]}  Na5 {[%clk 0:01:28]} 23. Nd2 {[%clk 0:00:14]}  Nxc4 {[%clk 0:01:26]} 24. Nxc4 {[%clk 0:00:14]}  Rxc4 {[%clk 0:01:25]} 25. Rdc1 {[%clk 0:00:12]}  Rfc8 {[%clk 0:01:22]} 26. Bd2 {[%clk 0:00:06]}  d5 {[%clk 0:01:19]} 27. g4 {[%clk 0:00:04]}  Rxc1 {[%clk 0:01:13]} 28. Rxc1 {[%clk 0:00:04]}  Rxc1 {[%clk 0:01:13]} 29. Bxc1 {[%clk 0:00:05]}  Qxa2+ {[%clk 0:01:13]} 30. Bd2 {[%clk 0:00:04]}  e6 {[%clk 0:01:09]} 31. Qc3 {[%clk 0:00:03]}  Qc4 {[%clk 0:01:09]} 32. Qa3 {[%clk 0:00:02]}  Qe2+ {[%clk 0:01:07]} 0-1


[Site "https://www.chess.com"]

[Event "Titled Tuesday Blitz August 3 2021"]
[White "Zubov, Alexander"]
[Black "He, Anthony"]
[WhiteFideId "14109409"]
[BlackFideId "2088215"]
[WhiteElo "2740"]
[BlackElo "2353"]
[Result "1-0"]
[Round "05"]
[TimeControl "180+1"]
[Date "2021.08.03"]
[WhiteClock "0:00:06"]
[BlackClock "0:00:01"]

1. d4 {[%clk 0:03:00]}  Nf6 {[%clk 0:02:57]} 2. c4 {[%clk 0:03:00]}  g6 {[%clk 0:02:57]} 3. Nc3 {[%clk 0:03:00]}  d5 {[%clk 0:02:57]} 4. e3 {[%clk 0:03:00]}  Bg7 {[%clk 0:02:57]} 5. Qb3 {[%clk 0:03:00]}  c6 {[%clk 0:02:53]} 6. Nf3 {[%clk 0:03:00]}  O-O {[%clk 0:02:53]} 7. Be2 {[%clk 0:03:00]}  a6 {[%clk 0:02:41]} 8. a4 {[%clk 0:02:53]}  e6 {[%clk 0:02:30]} 9. a5 {[%clk 0:02:51]}  Nbd7 {[%clk 0:02:28]} 10. O-O {[%clk 0:02:49]}  Re8 {[%clk 0:02:23]} 11. Rd1 {[%clk 0:02:49]}  Qe7 {[%clk 0:02:10]} 12. Qc2 {[%clk 0:02:42]}  dxc4 {[%clk 0:01:35]} 13. Bxc4 {[%clk 0:02:37]}  e5 {[%clk 0:01:35]} 14. Ng5 {[%clk 0:02:29]}  Rf8 {[%clk 0:01:35]} 15. b3 {[%clk 0:02:26]}  Nd5 {[%clk 0:01:30]} 16. Nge4 {[%clk 0:01:53]}  exd4 {[%clk 0:01:23]} 17. exd4 {[%clk 0:01:49]}  Nb4 {[%clk 0:01:20]} 18. Qd2 {[%clk 0:01:43]}  Nf6 {[%clk 0:01:11]} 19. Nxf6+ {[%clk 0:01:07]}  Qxf6 {[%clk 0:01:11]} 20. Ba3 {[%clk 0:01:07]}  c5 {[%clk 0:00:58]} 21. Ne4 {[%clk 0:01:03]}  Qh4 {[%clk 0:00:36]} 22. Nxc5 {[%clk 0:00:53]}  Nc6 {[%clk 0:00:37]} 23. Bb2 {[%clk 0:00:49]}  Rd8 {[%clk 0:00:26]} 24. d5 {[%clk 0:00:48]}  Ne5 {[%clk 0:00:27]} 25. Ra4 {[%clk 0:00:39]}  Bg4 {[%clk 0:00:09]} 26. Be2 {[%clk 0:00:35]}  Qh5 {[%clk 0:00:10]} 27. Bxg4 {[%clk 0:00:19]}  Nxg4 {[%clk 0:00:11]} 28. h3 {[%clk 0:00:19]}  Nxf2 {[%clk 0:00:08]} 29. Rf1 {[%clk 0:00:12]}  Bxb2 {[%clk 0:00:07]} 30. Qxb2 {[%clk 0:00:11]}  Rxd5 {[%clk 0:00:03]} 31. Qxf2 {[%clk 0:00:09]}  Rxc5 {[%clk 0:00:04]} 32. Qxf7+ {[%clk 0:00:09]}  Kh8 {[%clk 0:00:05]} 33. Qf6+ {[%clk 0:00:10]}  Kg8 {[%clk 0:00:05]} 34. Re4 {[%clk 0:00:10]}  Rc7 {[%clk 0:00:03]} 35. Qe6+ {[%clk 0:00:10]}  Kh8 {[%clk 0:00:03]} 36. Qf6+ {[%clk 0:00:09]}  Kg8 {[%clk 0:00:04]} 37. Qe6+ {[%clk 0:00:08]}  Kh8 {[%clk 0:00:04]} 38. Ref4 {[%clk 0:00:09]}  Qc5+ {[%clk 0:00:04]} 39. Kh1 {[%clk 0:00:09]}  Qe7 {[%clk 0:00:04]} 40. Qg4 {[%clk 0:00:07]}  Re8 {[%clk 0:00:03]} 41. h4 {[%clk 0:00:07]}  Qe5 {[%clk 0:00:01]} 42. Qf3 {[%clk 0:00:06]} 1-0


[Site "https://www.chess.com"]

[Event "Titled Tuesday Blitz August 3 2021"]
[White "Abdusattorov, Nodirbek"]
[Black "Le, Tuan Minh"]
[WhiteFideId "14204118"]
[BlackFideId "12401153"]
[WhiteElo "2662"]
[BlackElo "2450"]
[Result "0-1"]
[Round "06"]
[TimeControl "180+1"]
[Date "2021.08.03"]
[WhiteClock "0:00:01"]
[BlackClock "0:00:10"]

1. e4 {[%clk 0:03:00]}  c5 {[%clk 0:03:00]} 2. Nf3 {[%clk 0:03:00]}  Nf6 {[%clk 0:03:00]} 3. Nc3 {[%clk 0:02:54]}  d5 {[%clk 0:03:00]} 4. exd5 {[%clk 0:02:54]}  Nxd5 {[%clk 0:03:01]} 5. Bb5+ {[%clk 0:02:52]}  Bd7 {[%clk 0:03:01]} 6. Bc4 {[%clk 0:02:52]}  Nb6 {[%clk 0:03:01]} 7. Be2 {[%clk 0:02:50]}  Nc6 {[%clk 0:03:01]} 8. O-O {[%clk 0:02:50]}  Bf5 {[%clk 0:03:01]} 9. Bb5 {[%clk 0:02:49]}  Bd7 {[%clk 0:02:46]} 10. d4 {[%clk 0:02:47]}  cxd4 {[%clk 0:02:46]} 11. Nxd4 {[%clk 0:02:47]}  Nxd4 {[%clk 0:02:39]} 12. Qxd4 {[%clk 0:02:46]}  Bxb5 {[%clk 0:02:39]} 13. Nxb5 {[%clk 0:02:43]}  Qxd4 {[%clk 0:02:38]} 14. Nxd4 {[%clk 0:02:43]}  Rc8 {[%clk 0:02:37]} 15. b3 {[%clk 0:02:37]}  e5 {[%clk 0:02:36]} 16. Nf3 {[%clk 0:02:04]}  Rxc2 {[%clk 0:01:44]} 17. Nxe5 {[%clk 0:01:38]}  Be7 {[%clk 0:01:31]} 18. Be3 {[%clk 0:01:34]}  Bf6 {[%clk 0:01:28]} 19. Rac1 {[%clk 0:01:29]}  Rxc1 {[%clk 0:00:48]} 20. Rxc1 {[%clk 0:01:30]}  Bxe5 {[%clk 0:00:48]} 21. Bxb6 {[%clk 0:01:29]}  Kd7 {[%clk 0:00:49]} 22. Be3 {[%clk 0:01:27]}  a6 {[%clk 0:00:48]} 23. Kf1 {[%clk 0:01:19]}  Rc8 {[%clk 0:00:38]} 24. Rxc8 {[%clk 0:01:16]}  Kxc8 {[%clk 0:00:39]} 25. f4 {[%clk 0:01:15]}  Bd6 {[%clk 0:00:36]} 26. Ke2 {[%clk 0:01:10]}  f5 {[%clk 0:00:37]} 27. Kd3 {[%clk 0:01:09]}  Kd7 {[%clk 0:00:37]} 28. Kc4 {[%clk 0:01:08]}  Kc6 {[%clk 0:00:36]} 29. g3 {[%clk 0:00:43]}  b5+ {[%clk 0:00:32]} 30. Kd3 {[%clk 0:00:43]}  Kd5 {[%clk 0:00:32]} 31. h3 {[%clk 0:00:41]}  h5 {[%clk 0:00:31]} 32. h4 {[%clk 0:00:38]}  g6 {[%clk 0:00:31]} 33. Bd4 {[%clk 0:00:36]}  a5 {[%clk 0:00:31]} 34. Bb6 {[%clk 0:00:35]}  a4 {[%clk 0:00:31]} 35. bxa4 {[%clk 0:00:31]}  bxa4 {[%clk 0:00:32]} 36. Bd4 {[%clk 0:00:26]}  Bb4 {[%clk 0:00:32]} 37. Bf2 {[%clk 0:00:26]}  Ba5 {[%clk 0:00:30]} 38. Ke2 {[%clk 0:00:18]}  Kc4 {[%clk 0:00:28]} 39. Be3 {[%clk 0:00:17]}  Bb4 {[%clk 0:00:19]} 40. Bf2 {[%clk 0:00:17]}  Bc3 {[%clk 0:00:15]} 41. Bb6 {[%clk 0:00:13]}  Kb4 {[%clk 0:00:14]} 42. Bf2 {[%clk 0:00:13]}  Ka3 {[%clk 0:00:14]} 43. Kd3 {[%clk 0:00:13]}  Bf6 {[%clk 0:00:10]} 44. Kc2 {[%clk 0:00:11]}  Kxa2 {[%clk 0:00:10]} 45. Bc5 {[%clk 0:00:09]}  Bd8 {[%clk 0:00:09]} 46. Bf2 {[%clk 0:00:04]}  Ba5 {[%clk 0:00:10]} 47. Be3 {[%clk 0:00:01]}  Be1 {[%clk 0:00:10]} 0-1


[Site "https://www.chess.com"]

[Event "Titled Tuesday Blitz August 3 2021"]
[White "Ambartsumova, Karina"]
[Black "Gallegos Diaz, Carlos Alberto"]
[WhiteFideId "4166299"]
[BlackFideId "3900886"]
[WhiteElo "2262"]
[BlackElo "2362"]
[Result "1-0"]
[Round "06"]
[TimeControl "180+1"]
[Date "2021.08.03"]
[WhiteClock "0:00:09"]
[BlackClock "0:00:03"]

1. c4 {[%clk 0:02:59]}  d6 {[%clk 0:02:59]} 2. d4 {[%clk 0:02:58]}  Nf6 {[%clk 0:02:59]} 3. Nf3 {[%clk 0:02:58]}  Nbd7 {[%clk 0:02:58]} 4. Nc3 {[%clk 0:02:56]}  e5 {[%clk 0:02:58]} 5. e4 {[%clk 0:02:55]}  Be7 {[%clk 0:02:57]} 6. Be2 {[%clk 0:02:56]}  O-O {[%clk 0:02:57]} 7. O-O {[%clk 0:02:56]}  exd4 {[%clk 0:02:54]} 8. Nxd4 {[%clk 0:02:56]}  Re8 {[%clk 0:02:54]} 9. Qc2 {[%clk 0:02:45]}  Bf8 {[%clk 0:02:50]} 10. f3 {[%clk 0:02:43]}  c6 {[%clk 0:02:48]} 11. Kh1 {[%clk 0:02:37]}  h6 {[%clk 0:02:36]} 12. Rd1 {[%clk 0:02:32]}  Qc7 {[%clk 0:02:34]} 13. Bf1 {[%clk 0:02:12]}  Ne5 {[%clk 0:02:33]} 14. Be3 {[%clk 0:02:00]}  Bd7 {[%clk 0:02:15]} 15. Rac1 {[%clk 0:01:54]}  Rad8 {[%clk 0:02:14]} 16. a3 {[%clk 0:01:50]}  Bc8 {[%clk 0:02:13]} 17. b4 {[%clk 0:01:42]}  a6 {[%clk 0:02:11]} 18. Bg1 {[%clk 0:01:28]}  g6 {[%clk 0:01:54]} 19. Qb3 {[%clk 0:01:27]}  c5 {[%clk 0:01:25]} 20. Nc2 {[%clk 0:01:23]}  Be6 {[%clk 0:00:59]} 21. Ne3 {[%clk 0:01:21]}  cxb4 {[%clk 0:00:54]} 22. axb4 {[%clk 0:01:19]}  b5 {[%clk 0:00:39]} 23. Ncd5 {[%clk 0:01:14]}  Bxd5 {[%clk 0:00:39]} 24. cxd5 {[%clk 0:01:13]}  Qb7 {[%clk 0:00:34]} 25. Nc2 {[%clk 0:01:10]}  Rc8 {[%clk 0:00:29]} 26. Nd4 {[%clk 0:01:11]}  Bg7 {[%clk 0:00:26]} 27. Bf2 {[%clk 0:00:46]}  Nfd7 {[%clk 0:00:25]} 28. h3 {[%clk 0:00:41]}  Nb6 {[%clk 0:00:25]} 29. f4 {[%clk 0:00:35]}  Nec4 {[%clk 0:00:25]} 30. Bd3 {[%clk 0:00:35]}  g5 {[%clk 0:00:18]} 31. fxg5 {[%clk 0:00:30]}  hxg5 {[%clk 0:00:19]} 32. Nf5 {[%clk 0:00:29]}  Be5 {[%clk 0:00:15]} 33. Qa2 {[%clk 0:00:26]}  f6 {[%clk 0:00:13]} 34. Qe2 {[%clk 0:00:26]}  Qh7 {[%clk 0:00:12]} 35. Qg4 {[%clk 0:00:24]}  Nb2 {[%clk 0:00:10]} 36. Rxc8 {[%clk 0:00:16]}  Rxc8 {[%clk 0:00:11]} 37. Bxb6 {[%clk 0:00:15]}  Nxd1 {[%clk 0:00:09]} 38. Qxd1 {[%clk 0:00:13]}  Qd7 {[%clk 0:00:07]} 39. Bg1 {[%clk 0:00:13]}  Kf8 {[%clk 0:00:07]} 40. Qh5 {[%clk 0:00:12]}  Qf7 {[%clk 0:00:07]} 41. Qh8+ {[%clk 0:00:10]}  Qg8 {[%clk 0:00:08]} 42. Qh6+ {[%clk 0:00:11]}  Ke8 {[%clk 0:00:07]} 43. Be2 {[%clk 0:00:11]}  Kd7 {[%clk 0:00:06]} 44. Bg4 {[%clk 0:00:10]}  Kc7 {[%clk 0:00:05]} 45. Ne7 {[%clk 0:00:11]}  Qf8 {[%clk 0:00:04]} 46. Qh7 {[%clk 0:00:09]}  Re8 {[%clk 0:00:03]} 47. Ng6+ {[%clk 0:00:09]} 1-0


[Site "https://www.chess.com"]

[Event "Titled Tuesday Blitz August 3 2021"]
[White "Anuj Shrivatri"]
[Black "Grinblat, Dmitry"]
[WhiteFideId "35070924"]
[BlackFideId "4163257"]
[WhiteElo "2038"]
[BlackElo "2482"]
[Result "1-0"]
[Round "06"]
[TimeControl "180+1"]
[Date "2021.08.03"]
[WhiteClock "0:02:12"]
[BlackClock "0:01:34"]

1. c4 {[%clk 0:03:00]}  Nf6 {[%clk 0:02:59]} 2. g3 {[%clk 0:03:00]}  e6 {[%clk 0:02:58]} 3. Bg2 {[%clk 0:03:01]}  d5 {[%clk 0:02:59]} 4. Nf3 {[%clk 0:03:01]}  Be7 {[%clk 0:02:59]} 5. O-O {[%clk 0:03:01]}  O-O {[%clk 0:03:00]} 6. d4 {[%clk 0:03:02]}  dxc4 {[%clk 0:02:59]} 7. Qc2 {[%clk 0:03:02]}  a6 {[%clk 0:02:52]} 8. a4 {[%clk 0:03:03]}  Nc6 {[%clk 0:02:52]} 9. Qxc4 {[%clk 0:03:01]}  Qd5 {[%clk 0:02:51]} 10. Nbd2 {[%clk 0:03:02]}  Rd8 {[%clk 0:02:51]} 11. e3 {[%clk 0:03:02]}  Qxc4 {[%clk 0:02:40]} 12. Nxc4 {[%clk 0:03:00]}  Nb4 {[%clk 0:02:27]} 13. Bd2 {[%clk 0:02:56]}  Rb8 {[%clk 0:02:25]} 14. Rfd1 {[%clk 0:02:50]}  Bd7 {[%clk 0:02:25]} 15. Nfe5 {[%clk 0:02:49]}  Be8 {[%clk 0:02:24]} 16. b3 {[%clk 0:02:28]}  Nfd5 {[%clk 0:02:21]} 17. e4 {[%clk 0:02:26]}  Nf6 {[%clk 0:02:06]} 18. Bc3 {[%clk 0:02:20]}  b5 {[%clk 0:01:55]} 19. axb5 {[%clk 0:02:18]}  axb5 {[%clk 0:01:55]} 20. Na5 {[%clk 0:02:17]}  Nc2 {[%clk 0:01:47]} 21. Rac1 {[%clk 0:02:14]}  b4 {[%clk 0:01:34]} 22. Bb2 {[%clk 0:02:12]} 1-0


[Site "https://www.chess.com"]

[Event "Titled Tuesday Blitz August 3 2021"]
[White "Ashiev, Eduard"]
[Black "Flores Quillas, Diego Saul Rodri"]
[WhiteFideId "4130090"]
[BlackFideId "3822508"]
[WhiteElo "2106"]
[BlackElo "2071"]
[Result "1-0"]
[Round "06"]
[TimeControl "180+1"]
[Date "2021.08.03"]
[WhiteClock "0:00:06"]
[BlackClock "0:00:25"]

1. d4 {[%clk 0:03:00]}  Nf6 {[%clk 0:02:45]} 2. Nf3 {[%clk 0:03:00]}  c5 {[%clk 0:02:45]} 3. d5 {[%clk 0:02:59]}  e6 {[%clk 0:02:39]} 4. c4 {[%clk 0:02:59]}  exd5 {[%clk 0:02:32]} 5. cxd5 {[%clk 0:02:58]}  d6 {[%clk 0:02:32]} 6. Nc3 {[%clk 0:02:58]}  g6 {[%clk 0:02:32]} 7. e4 {[%clk 0:02:58]}  Bg7 {[%clk 0:02:29]} 8. h3 {[%clk 0:02:58]}  O-O {[%clk 0:02:27]} 9. Bd3 {[%clk 0:02:58]}  a6 {[%clk 0:02:23]} 10. a4 {[%clk 0:02:58]}  Re8 {[%clk 0:02:23]} 11. O-O {[%clk 0:02:58]}  Nbd7 {[%clk 0:02:20]} 12. Re1 {[%clk 0:02:57]}  Nh5 {[%clk 0:02:18]} 13. Bg5 {[%clk 0:02:45]}  Bf6 {[%clk 0:02:18]} 14. Be3 {[%clk 0:02:41]}  Ne5 {[%clk 0:02:12]} 15. Be2 {[%clk 0:02:39]}  Nxf3+ {[%clk 0:02:11]} 16. Bxf3 {[%clk 0:02:39]}  Ng7 {[%clk 0:02:12]} 17. Qd2 {[%clk 0:02:33]}  h5 {[%clk 0:02:10]} 18. Be2 {[%clk 0:01:55]}  Rb8 {[%clk 0:02:00]} 19. a5 {[%clk 0:01:49]}  b5 {[%clk 0:01:55]} 20. axb6 {[%clk 0:01:48]}  Rxb6 {[%clk 0:01:55]} 21. Bc4 {[%clk 0:01:39]}  Qc7 {[%clk 0:01:48]} 22. Bf4 {[%clk 0:01:25]}  h4 {[%clk 0:01:41]} 23. Rad1 {[%clk 0:01:24]}  Nh5 {[%clk 0:01:41]} 24. Bg5 {[%clk 0:01:13]}  Qe7 {[%clk 0:01:39]} 25. Bxf6 {[%clk 0:00:57]}  Qxf6 {[%clk 0:01:40]} 26. e5 {[%clk 0:00:54]}  Rxe5 {[%clk 0:01:28]} 27. Rxe5 {[%clk 0:00:53]}  dxe5 {[%clk 0:01:11]} 28. Ne4 {[%clk 0:00:47]}  Qd8 {[%clk 0:01:07]} 29. d6 {[%clk 0:00:38]}  Bf5 {[%clk 0:00:58]} 30. Nxc5 {[%clk 0:00:29]}  Nf4 {[%clk 0:00:57]} 31. d7 {[%clk 0:00:24]}  Rc6 {[%clk 0:00:52]} 32. b4 {[%clk 0:00:22]}  a5 {[%clk 0:00:51]} 33. Bb5 {[%clk 0:00:19]}  Rb6 {[%clk 0:00:43]} 34. Bc4 {[%clk 0:00:09]}  axb4 {[%clk 0:00:37]} 35. Qa2 {[%clk 0:00:08]}  Ne6 {[%clk 0:00:24]} 36. Bxe6 {[%clk 0:00:06]}  Bxe6 {[%clk 0:00:20]} 37. Nxe6 {[%clk 0:00:06]}  fxe6 {[%clk 0:00:20]} 38. Qa7 {[%clk 0:00:03]}  Rb8 {[%clk 0:00:17]} 39. Qxb8 {[%clk 0:00:03]}  Qxb8 {[%clk 0:00:16]} 40. d8=Q+ {[%clk 0:00:03]}  Qxd8 {[%clk 0:00:17]} 41. Rxd8+ {[%clk 0:00:03]}  Kf7 {[%clk 0:00:18]} 42. Rb8 {[%clk 0:00:04]}  Kf6 {[%clk 0:00:19]} 43. Rxb4 {[%clk 0:00:04]}  Kf5 {[%clk 0:00:20]} 44. f3 {[%clk 0:00:04]}  g5 {[%clk 0:00:21]} 45. Kf2 {[%clk 0:00:05]}  Kf6 {[%clk 0:00:21]} 46. Ke3 {[%clk 0:00:05]}  Kf5 {[%clk 0:00:22]} 47. Rb5 {[%clk 0:00:05]}  Kf6 {[%clk 0:00:23]} 48. Ke4 {[%clk 0:00:05]}  Kg6 {[%clk 0:00:23]} 49. Kxe5 {[%clk 0:00:06]}  Kf7 {[%clk 0:00:23]} 50. Rb6 {[%clk 0:00:06]}  Kg6 {[%clk 0:00:24]} 51. Kxe6 {[%clk 0:00:06]}  Kh5 {[%clk 0:00:24]} 52. Kf5 {[%clk 0:00:06]}  g4 {[%clk 0:00:25]} 53. fxg4# {[%clk 0:00:06]} 1-0


[Site "https://www.chess.com"]

[Event "Titled Tuesday Blitz August 3 2021"]
[White "Babazada, Khazar"]
[Black "Quparadze, Giga"]
[WhiteFideId "13413554"]
[BlackFideId "13602250"]
[WhiteElo "2344"]
[BlackElo "2658"]
[Result "0-1"]
[Round "06"]
[TimeControl "180+1"]
[Date "2021.08.03"]
[WhiteClock "0:00:14"]
[BlackClock "0:00:06"]

1. e4 {[%clk 0:03:00]}  c5 {[%clk 0:02:57]} 2. Nf3 {[%clk 0:03:00]}  e6 {[%clk 0:02:57]} 3. d4 {[%clk 0:03:00]}  cxd4 {[%clk 0:02:58]} 4. Nxd4 {[%clk 0:02:58]}  a6 {[%clk 0:02:58]} 5. Bd3 {[%clk 0:02:58]}  g6 {[%clk 0:02:55]} 6. O-O {[%clk 0:02:57]}  Bg7 {[%clk 0:02:55]} 7. Nb3 {[%clk 0:02:58]}  Nc6 {[%clk 0:02:55]} 8. Nc3 {[%clk 0:02:59]}  Nge7 {[%clk 0:02:55]} 9. f4 {[%clk 0:02:59]}  d5 {[%clk 0:02:55]} 10. Qe1 {[%clk 0:02:59]}  dxe4 {[%clk 0:02:54]} 11. Nxe4 {[%clk 0:03:00]}  O-O {[%clk 0:02:54]} 12. Bd2 {[%clk 0:03:00]}  Bxb2 {[%clk 0:02:34]} 13. Bc3 {[%clk 0:02:37]}  Bxc3 {[%clk 0:02:33]} 14. Qxc3 {[%clk 0:02:37]}  Nd5 {[%clk 0:02:33]} 15. Qb2 {[%clk 0:02:37]}  f5 {[%clk 0:02:31]} 16. Ng5 {[%clk 0:02:33]}  Qf6 {[%clk 0:02:30]} 17. Qa3 {[%clk 0:02:28]}  Nxf4 {[%clk 0:02:17]} 18. Nxh7 {[%clk 0:02:24]}  Nh3+ {[%clk 0:02:17]} 19. gxh3 {[%clk 0:02:24]}  Kxh7 {[%clk 0:02:17]} 20. Rae1 {[%clk 0:02:19]}  b6 {[%clk 0:02:05]} 21. Qd6 {[%clk 0:02:12]}  e5 {[%clk 0:02:03]} 22. Qc7+ {[%clk 0:02:04]}  Rf7 {[%clk 0:02:01]} 23. Qxb6 {[%clk 0:02:04]}  Bb7 {[%clk 0:01:57]} 24. Qf2 {[%clk 0:01:58]}  Nb4 {[%clk 0:01:46]} 25. Be4 {[%clk 0:01:51]}  Nd5 {[%clk 0:01:37]} 26. Qg3 {[%clk 0:01:17]}  Nf4 {[%clk 0:01:26]} 27. Bxb7 {[%clk 0:01:09]}  Rxb7 {[%clk 0:01:27]} 28. Nd2 {[%clk 0:01:05]}  Rc8 {[%clk 0:01:09]} 29. c4 {[%clk 0:01:04]}  Rb2 {[%clk 0:01:07]} 30. Rf2 {[%clk 0:00:56]}  Rcb8 {[%clk 0:00:30]} 31. c5 {[%clk 0:00:46]}  g5 {[%clk 0:00:30]} 32. Qc3 {[%clk 0:00:36]}  R8b5 {[%clk 0:00:27]} 33. c6 {[%clk 0:00:35]}  Rb8 {[%clk 0:00:21]} 34. c7 {[%clk 0:00:35]}  Rc8 {[%clk 0:00:17]} 35. Qxb2 {[%clk 0:00:35]}  Rxc7 {[%clk 0:00:17]} 36. Qb3 {[%clk 0:00:30]}  e4 {[%clk 0:00:17]} 37. Qg3 {[%clk 0:00:27]}  Rc3 {[%clk 0:00:17]} 38. Re3 {[%clk 0:00:26]}  Rc1+ {[%clk 0:00:10]} 39. Nf1 {[%clk 0:00:26]}  Nh5 {[%clk 0:00:07]} 40. Qb8 {[%clk 0:00:24]}  Qd4 {[%clk 0:00:06]} 41. Qb3 {[%clk 0:00:19]}  f4 {[%clk 0:00:06]} 42. Qf7+ {[%clk 0:00:19]}  Ng7 {[%clk 0:00:05]} 43. Rb3 {[%clk 0:00:13]}  e3 {[%clk 0:00:05]} 44. Re2 {[%clk 0:00:14]}  Rxf1+ {[%clk 0:00:05]} 45. Kxf1 {[%clk 0:00:14]}  Qd1+ {[%clk 0:00:05]} 46. Re1 {[%clk 0:00:13]}  Qf3+ {[%clk 0:00:05]} 47. Kg1 {[%clk 0:00:14]}  Qf2+ {[%clk 0:00:06]} 0-1


[Site "https://www.chess.com"]